fUST/lending_fUST_20260619
["ID","MTS","AMOUNT","RATE_DAILY","PERIOD"]
[425609485,1781835032000,-151.0,9.035e-05,2]
[425609492,1781835032000,-3268.39002581,0.00015707,2]
[425609491,1781835032000,-856.85385211,0.00015707,2]
[425609493,1781835032000,-349.36689431,0.00015707,2]
[425609495,1781835032000,-13497.13653386,0.00015707,2]
[425609494,1781835032000,-767.51113629,0.00015707,2]
[425609489,1781835032000,-9243.28506868,0.00015,2]
[425609549,1781835038000,-250.89,0.00015707,2]
[425609550,1781835038000,-5105.06672586,0.00015707,2]
[425609552,1781835038000,-1641.14171,0.00015965,2]
[425609558,1781835038000,-500.0,0.00016438,2]
[425609551,1781835038000,-1000.0,0.00015798,2]
[425609553,1781835038000,-19.07249476,0.00016045,7]
[425609555,1781835038000,-946.2409024,0.00016109,2]
[425609556,1781835038000,-500.0,0.00016438,2]
[425609557,1781835038000,-500.0,0.00016438,2]
[425609559,1781835038000,-500.0,0.00016438,2]
[425609554,1781835038000,-140.43990456,0.00016045,7]
[425609561,1781835039000,-199.78474485,0.00016712,2]
[425609560,1781835039000,-1641.14171,0.00016637,2]
[425609568,1781835041000,-500.0,0.00016986,2]
[425609563,1781835041000,-300.21525515,0.00016712,2]
[425609565,1781835041000,-500.0,0.00016712,2]
[425609567,1781835041000,-500.0,0.00016986,2]
[425609564,1781835041000,-500.0,0.00016712,2]
[425609566,1781835041000,-500.0,0.00016712,2]
[425609570,1781835041000,-500.0,0.00016986,2]
[425609572,1781835041000,-500.0,0.0001726,2]
[425609569,1781835041000,-565.87247593,0.00016986,2]
[425609576,1781835041000,-1641.14171,0.00017309,2]
[425609577,1781835041000,-320.46525875,0.00017534,2]
[425609575,1781835041000,-425.26042826,0.0001726,2]
[425609571,1781835041000,-239.268599,0.00016988,7]
[425609578,1781835041000,-177.99062757,0.00017534,2]
[425609574,1781835041000,-74.73957174,0.0001726,2]
[425609573,1781835041000,-500.0,0.0001726,2]
[425609604,1781835045000,-523.73483362,0.00016712,2]
[425609603,1781835045000,-500.0,0.00016438,2]
[425609619,1781835046000,-420.72921007,0.000177,2]
[425609618,1781835046000,-500.0,0.000177,2]
[425609614,1781835046000,-322.00937243,0.00017534,2]
[425609616,1781835046000,-3776.86767165,0.00017697,2]
[425609617,1781835046000,-511.4079254,0.000177,2]
[425609615,1781835046000,-500.0,0.00017534,2]
[425609613,1781835046000,-69.06449027,0.00016712,2]
[425609634,1781835094000,500.0,0.00018899,30]
[425609635,1781835094000,500.0,0.00018899,30]
[425609633,1781835094000,248.97373815,0.00018899,30]
[425609636,1781835095000,502.51665058,0.00018899,30]
[425609644,1781835127000,151.5,0.00018899,30]
[425609643,1781835127000,151.5,0.00018899,30]
[425609642,1781835127000,151.5,0.00018899,30]
[425609641,1781835127000,151.5,0.00018899,30]
[425609646,1781835128000,169.22178528,0.00018899,30]
[425609645,1781835128000,151.5,0.00018899,30]
[425609650,1781835203000,675.0,0.00018899,30]
[425609649,1781835203000,675.0,0.00018899,30]
[425609654,1781835204000,675.0,0.00018899,30]
[425609651,1781835204000,675.0,0.00018899,30]
[425609653,1781835204000,500.0,0.00018899,30]
[425609655,1781835204000,502.04006418,0.00018899,30]
[425609652,1781835204000,500.0,0.00018899,30]
[425609657,1781835204000,675.0,0.00018899,30]
[425609658,1781835204000,500.0,0.00018899,30]
[425609659,1781835204000,675.0,0.00018899,30]
[425609656,1781835204000,500.0,0.00018899,30]
[425609660,1781835204000,348.86035019,0.00018899,30]
[425609661,1781835204000,675.0,0.00018899,30]
[425609662,1781835205000,675.0,0.00018899,30]
[425609663,1781835205000,675.0,0.00018899,30]
[425609664,1781835205000,675.0,0.00018899,30]
[425609668,1781835205000,675.0,0.00018899,30]
[425609666,1781835205000,675.0,0.00018899,30]
[425609667,1781835205000,675.0,0.00018899,30]
[425609665,1781835205000,675.0,0.00018899,30]
[425609670,1781835206000,675.0,0.00018899,30]
[425609669,1781835206000,675.0,0.00018899,30]
[425609671,1781835207000,675.0,0.00018899,30]
[425609672,1781835208000,675.0,0.00018899,30]
[425609675,1781835209000,675.0,0.00018899,30]
[425609676,1781835211000,675.0,0.00018899,30]
[425609677,1781835213000,675.0,0.00018899,30]
[425609678,1781835215000,675.0,0.00018899,30]
[425609679,1781835218000,675.0,0.00018899,30]
[425609680,1781835221000,697.4224858,0.00018899,30]
[425609686,1781835249000,500.0,0.00018899,30]
[425609682,1781835249000,500.0,0.00018899,30]
[425609683,1781835249000,500.0,0.00018899,30]
[425609684,1781835249000,500.0,0.00018899,30]
[425609685,1781835249000,500.0,0.00018899,30]
[425609692,1781835250000,500.0,0.00018899,30]
[425609691,1781835250000,500.0,0.00018899,30]
[425609690,1781835250000,500.0,0.00018899,30]
[425609689,1781835250000,500.0,0.00018899,30]
[425609687,1781835250000,500.0,0.00018899,30]
[425609688,1781835250000,500.0,0.00018899,30]
[425609699,1781835251000,500.0,0.00018899,30]
[425609698,1781835251000,179.37445046,0.00018899,30]
[425609697,1781835251000,500.0,0.00018899,30]
[425609696,1781835251000,500.0,0.00018899,30]
[425609695,1781835251000,500.0,0.00018899,30]
[425609694,1781835251000,500.0,0.00018899,30]
[425609693,1781835251000,500.0,0.00018899,30]
[425609700,1781835252000,500.0,0.00018899,30]
[425609701,1781835253000,500.0,0.00018899,30]
[425609702,1781835254000,376.27733813,0.00018899,30]
[425609716,1781835551000,264.0,0.0002,120]
[425609821,1781836239000,-1935.71,0.00017807,2]
[425609820,1781836239000,-500.0,0.00017807,2]
[425609823,1781836239000,-500.0,0.00017807,2]
[425609822,1781836239000,-500.0,0.00017807,2]
[425609819,1781836239000,-500.0,0.00017534,2]
[425609817,1781836239000,-500.0,0.0001726,2]
[425609818,1781836239000,-500.0,0.00017533,2]
[425609816,1781836239000,-500.0,0.00017259,2]
[425609814,1781836239000,-500.0,0.00017259,2]
[425609812,1781836239000,-300.0,0.00017258,2]
[425609811,1781836239000,-500.0,0.00016986,2]
[425609810,1781836239000,-178.471232,0.0001698,2]
[425609805,1781836239000,-500.0,0.00016438,2]
[425609809,1781836239000,-3440.0905847,0.00016808,2]
[425609807,1781836239000,-173.2888535,0.00016733,2]
[425609806,1781836239000,-500.0,0.00016712,2]
[425609808,1781836239000,-291.340006,0.00016798,2]
[425609804,1781836239000,-161.7217826,0.00016003,2]
[425609815,1781836239000,-339.85336522,0.00017259,2]
[425609824,1781836239000,-500.0,0.00017808,2]
[425609813,1781836239000,-300.0,0.00017258,2]
[425609826,1781836239000,-500.0,0.00018067,2]
[425609845,1781836239000,-2901.27603266,0.00018156,2]
[425609844,1781836239000,-152.0,0.00018106,7]
[425609842,1781836239000,-152.0,0.000181,7]
[425609843,1781836239000,-152.0,0.00018106,7]
[425609841,1781836239000,-152.0,0.000181,7]
[425609839,1781836239000,-500.0,0.00018081,2]
[425609840,1781836239000,-500.0,0.00018082,2]
[425609838,1781836239000,-500.0,0.00018081,2]
[425609830,1781836239000,-500.0,0.00018067,2]
[425609837,1781836239000,-1935.71,0.00018081,2]
[425609836,1781836239000,-500.0,0.00018081,2]
[425609835,1781836239000,-159.75178447,0.0001808,2]
[425609832,1781836239000,-500.0,0.00018067,2]
[425609829,1781836239000,-336.84949868,0.00018067,2]
[425609834,1781836239000,-500.0,0.0001808,2]
[425609833,1781836239000,-500.0,0.00018067,2]
[425609828,1781836239000,-500.0,0.00018067,2]
[425609827,1781836239000,-644.99436182,0.00018067,2]
[425609831,1781836239000,-500.0,0.00018067,2]
[425609825,1781836239000,-384.12768077,0.00017981,2]
[425609847,1781836241000,-15892.51238521,0.00018156,2]
[425609857,1781836243000,-5000.0,0.00018156,2]
[425609855,1781836243000,-579.08967693,0.00018156,2]
[425609856,1781836243000,-2308.22724099,0.00018156,2]
[425609858,1781836244000,-906.44341314,0.00018156,2]
[425609901,1781836246000,-592.2816049,0.00018156,2]
[425609927,1781836247000,-32374.03041795,0.00018156,2]
[425609919,1781836247000,-57801.90359077,0.00018156,2]
[425615452,1781836361000,2000.0,0.00023248,120]
[425615476,1781836501000,964.63081911,0.00023248,120]
[425615496,1781836859000,152.0,0.00018929,30]
[425615497,1781836860000,152.0,0.00018967,30]
[425615533,1781837243000,152.0,0.00018929,30]
[425615532,1781837243000,152.0,0.00018929,30]
[425615546,1781837380000,152.0,0.00018967,30]
[425615547,1781837381000,152.0,0.00018967,30]
[425615564,1781837432000,-500.0,0.00017855,2]
[425615561,1781837432000,-177.61,0.00017846,3]
[425615563,1781837432000,-255.64043035,0.00017855,2]
[425615562,1781837432000,-532.88,0.00017846,3]
[425615554,1781837432000,-267.012028,0.00016885,2]
[425615557,1781837432000,-178.471232,0.00017058,2]
[425615555,1781837432000,-744.893667,0.00016907,2]
[425615560,1781837432000,-1426.39714145,0.00017756,2]
[425615558,1781837432000,-205.65086136,0.00017463,2]
[425615556,1781837432000,-200.0,0.00016963,2]
[425615567,1781837432000,-500.0,0.00017855,2]
[425615559,1781837432000,-335.95384584,0.00017756,2]
[425615568,1781837432000,-500.0,0.00017855,2]
[425615573,1781837432000,-500.0,0.00017855,2]
[425615566,1781837432000,-500.0,0.00017855,2]
[425615579,1781837432000,-7541.6813746,0.00017856,2]
[425615576,1781837432000,-275.28779657,0.00017855,2]
[425615580,1781837432000,-31505.72695384,0.00017856,2]
[425615577,1781837432000,-500.0,0.00017855,2]
[425615571,1781837432000,-500.0,0.00017855,2]
[425615574,1781837432000,-500.0,0.00017855,2]
[425615575,1781837432000,-500.0,0.00017855,2]
[425615578,1781837432000,-500.0,0.00017855,2]
[425615572,1781837432000,-272.9022626,0.00017855,2]
[425615570,1781837432000,-541.35408399,0.00017855,2]
[425615569,1781837432000,-327.27781409,0.00017855,2]
[425615565,1781837432000,-500.0,0.00017855,2]
[425615589,1781837438000,-1625.19056592,0.00017856,2]
[425615590,1781837438000,-32943.07998254,0.00017856,2]
[425615588,1781837438000,-40337.86346687,0.00017856,2]
[425615594,1781837443000,-304.25747825,0.00017856,2]
[425615600,1781837446000,-26696.4824819,0.00017856,2]
[425615598,1781837446000,-224457.796842,0.00017856,2]
[425615597,1781837446000,-947.14248522,0.00017856,2]
[425615599,1781837446000,-577013.16643488,0.00017856,2]
[425617104,1781837467000,152.0,0.00018928,30]
[425617064,1781837467000,152.0,0.00018928,30]
[425618562,1781837499000,152.0,0.00018966,30]
[425618578,1781837843000,265.15811298,0.00018899,30]
[425618579,1781837844000,500.0,0.00018899,30]
[425618583,1781837844000,492.98148917,0.00018899,30]
[425618582,1781837844000,500.0,0.00018899,30]
[425618581,1781837844000,500.0,0.00018899,30]
[425618580,1781837844000,500.0,0.00018899,30]
[425618585,1781837864000,152.0,0.00018943,30]
[425618586,1781837865000,152.0,0.00018943,30]
[425618589,1781837891000,152.54,0.00024608,120]
[425618590,1781837900000,152.0,0.00018943,30]
[425618595,1781837943000,152.0,0.00018943,30]
[425618603,1781838041000,152.0,0.00018949,30]
[425618604,1781838053000,-166.60767042,0.000115,2]
[425618606,1781838070000,152.0,0.00018949,30]
[425618605,1781838070000,-322.41293578,0.00012,2]
[425618608,1781838087000,-258.77871913,0.00013852,2]
[425618610,1781838104000,-151.0,0.00015326,2]
[425618611,1781838120000,-860.12514702,0.000158,2]
[425618612,1781838137000,-254.848038,0.00016669,2]
[425618615,1781838154000,213.0,0.00024658,120]
[425618614,1781838154000,-197.577902,0.00016871,2]
[425618758,1781838632000,-4.8001815,0.0001,2]
[425618757,1781838632000,-300.0,9.999e-05,2]
[425618772,1781838638000,-6341.96856784,0.0001,2]
[425618774,1781838638000,-1348.873034,0.0001,2]
[425618784,1781838638000,-152.29364072,0.00017303,2]
[425618776,1781838638000,-592.49936617,0.0001,2]
[425618775,1781838638000,-4629.92985366,0.0001,2]
[425618780,1781838638000,-227.94289466,0.0001576,2]
[425618777,1781838638000,-300.73866134,0.00014993,2]
[425618779,1781838638000,-199.45003283,0.0001576,2]
[425618778,1781838638000,-343.35762592,0.00015643,2]
[425618782,1781838638000,-254.8480397,0.00016398,2]
[425618781,1781838638000,-355.80461213,0.0001576,2]
[425618794,1781838638000,-258.58642379,0.00017555,2]
[425618773,1781838638000,-3435.81254049,0.0001,2]
[425618785,1781838638000,-179.554,0.00017303,2]
[425618797,1781838638000,-2420.02224527,0.00017556,2]
[425618795,1781838638000,-20086.21005729,0.00017556,2]
[425618793,1781838638000,-197.25419962,0.00017555,2]
[425618792,1781838638000,-378.94785879,0.00017555,2]
[425618789,1781838638000,-421.34891386,0.00017463,2]
[425618796,1781838638000,-10492.76165153,0.00017556,2]
[425618786,1781838638000,-410.94296354,0.00017463,2]
[425618787,1781838638000,-295.72287318,0.00017463,2]
[425618791,1781838638000,-1248.09749876,0.00017545,2]
[425618790,1781838638000,-657.69932023,0.00017463,2]
[425618788,1781838638000,-368.68029963,0.00017463,2]
[425618783,1781838638000,-197.577902,0.00016605,2]
[425618804,1781838643000,-720.0,0.00017556,2]
[425618802,1781838643000,-8723.20172005,0.00017556,2]
[425618803,1781838643000,-4687.97517867,0.00017556,2]
[425618816,1781838646000,-14989.78954909,0.00017556,2]
[425618815,1781838646000,-276939.86381106,0.00017556,2]
[425618814,1781838646000,-8295.31891492,0.00017556,2]
[425618812,1781838646000,-12477.8732666,0.00017556,2]
[425618813,1781838646000,-15153.41318504,0.00017556,2]
[425624057,1781838722000,152.0,0.00018992,30]
[425624134,1781839157000,152.0,0.00018993,30]
[425624319,1781839834000,-300.0,9.999e-05,2]
[425624321,1781839835000,-2750.0,0.0001,2]
[425624339,1781839835000,-300.0,0.00010199,2]
[425624337,1781839835000,-300.0,0.00010199,2]
[425624338,1781839835000,-300.0,0.00010199,2]
[425624332,1781839835000,-151.0,0.0001,2]
[425624330,1781839835000,-151.0,0.0001,2]
[425624331,1781839835000,-151.0,0.0001,2]
[425624334,1781839835000,-300.0,0.00010199,2]
[425624333,1781839835000,-282.07550369,0.0001,2]
[425624328,1781839835000,-151.0,0.0001,2]
[425624326,1781839835000,-38.15311185,0.0001,2]
[425624327,1781839835000,-112.84688815,0.0001,2]
[425624324,1781839835000,-503.65218648,0.0001,2]
[425624323,1781839835000,-235.08383148,0.0001,2]
[425624325,1781839835000,-151.0,0.0001,2]
[425624322,1781839835000,-2691.39105038,0.0001,2]
[425624320,1781839835000,-2013.05918132,0.0001,2]
[425624329,1781839835000,-151.0,0.0001,2]
[425624335,1781839835000,-300.0,0.00010199,2]
[425624343,1781839835000,-300.0,0.00010199,2]
[425624341,1781839835000,-300.0,0.00010199,2]
[425624359,1781839835000,-1076.45481776,0.00014992,2]
[425624336,1781839835000,-300.0,0.00010199,2]
[425624356,1781839835000,-446.3299466,0.00014216,2]
[425624355,1781839835000,-1000.0,0.00013845,2]
[425624357,1781839835000,-2298.98436302,0.00014992,2]
[425624354,1781839835000,-199.18677541,0.00013047,2]
[425624353,1781839835000,-864.0,0.00012586,2]
[425624351,1781839835000,-720.0,0.00011442,2]
[425624348,1781839835000,-300.0,0.00010199,2]
[425624358,1781839835000,-349.36689431,0.00014992,2]
[425624350,1781839835000,-420.0,0.00010999,2]
[425624352,1781839835000,-587.0,0.00012099,2]
[425624349,1781839835000,-600.0,0.00010402,2]
[425624346,1781839835000,-300.0,0.00010199,2]
[425624344,1781839835000,-300.0,0.00010199,2]
[425624342,1781839835000,-300.0,0.00010199,2]
[425624345,1781839835000,-300.0,0.00010199,2]
[425624340,1781839835000,-300.0,0.00010199,2]
[425624347,1781839835000,-300.0,0.00010199,2]
[425624378,1781839838000,-2413.908992,0.00016694,2]
[425624384,1781839838000,-500.0,0.00016712,2]
[425624381,1781839838000,-500.0,0.00016712,2]
[425624372,1781839838000,-500.0,0.00016438,2]
[425624373,1781839838000,-500.0,0.00016438,2]
[425624369,1781839838000,-2149.12408161,0.00015944,2]
[425624365,1781839838000,-1000.0,0.0001523,2]
[425624364,1781839838000,-272.576261,0.00015024,2]
[425624363,1781839838000,-1903.08070901,0.00014992,2]
[425624368,1781839838000,-2413.908992,0.00015398,2]
[425624370,1781839838000,-2413.908992,0.00016046,2]
[425624366,1781839838000,-244.0,0.0001523,2]
[425624371,1781839838000,-500.0,0.00016438,2]
[425624367,1781839838000,-1418.8162401,0.00015314,2]
[425624374,1781839838000,-500.0,0.00016438,2]
[425624379,1781839838000,-500.0,0.00016712,2]
[425624375,1781839838000,-500.0,0.00016438,2]
[425624376,1781839838000,-500.0,0.00016438,2]
[425624394,1781839838000,-500.0,0.00016986,2]
[425624392,1781839838000,-500.0,0.00016986,2]
[425624391,1781839838000,-492.0,0.00016752,2]
[425624389,1781839838000,-500.0,0.00016751,2]
[425624390,1781839838000,-1000.0,0.00016752,2]
[425624387,1781839838000,-1774.4,0.00016751,2]
[425624393,1781839838000,-500.0,0.00016986,2]
[425624386,1781839838000,-500.0,0.00016751,2]
[425624377,1781839838000,-500.0,0.00016438,2]
[425624382,1781839838000,-500.0,0.00016712,2]
[425624383,1781839838000,-500.0,0.00016712,2]
[425624380,1781839838000,-500.0,0.00016712,2]
[425624385,1781839838000,-500.0,0.00016712,2]
[425624388,1781839838000,-500.0,0.00016751,2]
[425624407,1781839839000,-500.0,0.0001726,2]
[425624412,1781839839000,-500.0,0.0001726,2]
[425624410,1781839839000,-500.0,0.0001726,2]
[425624404,1781839839000,-324.40742219,0.00017164,2]
[425624402,1781839839000,-500.0,0.00017025,2]
[425624408,1781839839000,-500.0,0.0001726,2]
[425624403,1781839839000,-500.0,0.00017025,2]
[425624411,1781839839000,-500.0,0.0001726,2]
[425624405,1781839839000,-370.75133965,0.00017164,2]
[425624397,1781839839000,-500.0,0.00016986,2]
[425624409,1781839839000,-500.0,0.0001726,2]
[425624401,1781839839000,-1774.4,0.00017025,2]
[425624400,1781839839000,-500.0,0.00017025,2]
[425624399,1781839839000,-2149.1240816,0.00017002,2]
[425624396,1781839839000,-500.0,0.00016986,2]
[425624395,1781839839000,-500.0,0.00016986,2]
[425624413,1781839839000,-500.0,0.00017299,2]
[425624398,1781839839000,-500.0,0.00016986,2]
[425624406,1781839839000,-500.0,0.0001726,2]
[425624416,1781839839000,-500.0,0.00017299,2]
[425624414,1781839839000,-903.76826945,0.00017299,2]
[425624415,1781839839000,-870.63173055,0.00017299,2]
[425624436,1781839839000,-2774.62829095,0.00017719,2]
[425624434,1781839839000,-151.0,0.000177,2]
[425624428,1781839839000,-500.0,0.00017573,2]
[425624432,1781839839000,-161.7217827,0.00017655,2]
[425624433,1781839839000,-166.28834953,0.00017685,2]
[425624426,1781839839000,-500.0,0.00017545,2]
[425624435,1781839839000,-151.0,0.000177,2]
[425624431,1781839839000,-500.0,0.00017573,2]
[425624430,1781839839000,-500.0,0.00017573,2]
[425624429,1781839839000,-1774.4,0.00017573,2]
[425624425,1781839839000,-500.0,0.00017534,2]
[425624427,1781839839000,-500.0,0.00017555,2]
[425624420,1781839839000,-500.0,0.00017534,2]
[425624418,1781839839000,-2413.908992,0.00017342,2]
[425624421,1781839839000,-500.0,0.00017534,2]
[425624417,1781839839000,-500.0,0.00017299,2]
[425624419,1781839839000,-500.0,0.00017534,2]
[425624422,1781839839000,-500.0,0.00017534,2]
[425624424,1781839839000,-500.0,0.00017534,2]
[425624423,1781839839000,-500.0,0.00017534,2]
[425624472,1781839843000,-4332.12958166,0.00017719,2]
[425624471,1781839843000,-722.0,0.00017719,2]
[425624475,1781839844000,152.0,0.00018994,30]
[425624500,1781839846000,-500.0,0.00017847,2]
[425624492,1781839846000,-500.0,0.00017808,2]
[425624495,1781839846000,-500.0,0.00017808,2]
[425624497,1781839846000,-500.0,0.00017808,2]
[425624499,1781839846000,-500.0,0.00017829,2]
[425624493,1781839846000,-500.0,0.00017808,2]
[425624496,1781839846000,-500.0,0.00017808,2]
[425624491,1781839846000,-44655.76659629,0.00017719,2]
[425624494,1781839846000,-500.0,0.00017808,2]
[425624490,1781839846000,-3069.44065081,0.00017719,2]
[425624502,1781839846000,-500.0,0.00017847,2]
[425624498,1781839846000,-500.0,0.00017808,2]
[425624501,1781839846000,-1774.4,0.00017847,2]
[425624489,1781839846000,-1831.55,0.00017719,2]
[425624504,1781839846000,-152.0,0.00017852,2]
[425624506,1781839846000,-484.95,0.0001789,3]
[425624507,1781839846000,-2413.908992,0.0001799,2]
[425624508,1781839846000,-2673.17552348,0.00018,2]
[425624509,1781839846000,-500.0,0.00018029,2]
[425624505,1781839846000,-161.64,0.0001789,3]
[425624510,1781839846000,-2149.1240816,0.00018061,2]
[425624511,1781839846000,-256.17422666,0.00018067,2]
[425624512,1781839846000,-240.48155042,0.00018067,2]
[425624516,1781839846000,-400.84557689,0.00018082,2]
[425624513,1781839846000,-274.83605762,0.00018067,2]
[425624514,1781839846000,-429.00190869,0.00018067,2]
[425624515,1781839846000,-500.0,0.00018082,2]
[425624503,1781839846000,-500.0,0.00017847,2]
[425629961,1781839909000,-500.0,0.00016438,2]
[425633746,1781839944000,267.83587506,0.00023256,120]
[425635694,1781840417000,152.0,0.00018993,30]
[425635697,1781840471000,152.0,0.00018993,30]
[425635783,1781841038000,-517.2954034,0.00016438,2]
[425635770,1781841038000,-1640.67880916,0.00014299,2]
[425635772,1781841038000,-272.576262,0.00015362,2]
[425635771,1781841038000,-500.0,0.00014991,2]
[425635773,1781841038000,-578.71966923,0.00015726,2]
[425635778,1781841038000,-500.0,0.00016437,2]
[425635774,1781841038000,-185.462779,0.00016166,2]
[425635776,1781841038000,-530.0,0.0001643,2]
[425635777,1781841038000,-500.0,0.00016437,2]
[425635784,1781841038000,-500.0,0.00016438,2]
[425635775,1781841038000,-4171.77990834,0.00016338,2]
[425635787,1781841038000,-500.0,0.00016438,2]
[425635790,1781841038000,-500.0,0.00016438,2]
[425635779,1781841038000,-500.0,0.00016438,2]
[425635788,1781841038000,-511.0235058,0.00016438,2]
[425635782,1781841038000,-500.0,0.00016438,2]
[425635789,1781841038000,-394.47040983,0.00016438,2]
[425635791,1781841038000,-500.0,0.00016438,2]
[425635785,1781841038000,-500.0,0.00016438,2]
[425635781,1781841038000,-500.0,0.00016438,2]
[425635786,1781841038000,-500.0,0.00016438,2]
[425635792,1781841038000,-509.32666969,0.00016438,2]
[425635780,1781841038000,-500.0,0.00016438,2]
[425635831,1781841039000,-500.0,0.00016438,2]
[425635834,1781841039000,-500.0,0.00016438,2]
[425635829,1781841039000,-500.0,0.00016438,2]
[425635830,1781841039000,-500.0,0.00016438,2]
[425635819,1781841039000,-500.0,0.00016438,2]
[425635826,1781841039000,-500.0,0.00016438,2]
[425635822,1781841039000,-500.0,0.00016438,2]
[425635852,1781841039000,-500.0,0.00016438,2]
[425635832,1781841039000,-500.0,0.00016438,2]
[425635817,1781841039000,-500.0,0.00016438,2]
[425635824,1781841039000,-500.0,0.00016438,2]
[425635840,1781841039000,-543.81052363,0.00016438,2]
[425635836,1781841039000,-500.0,0.00016438,2]
[425635833,1781841039000,-500.0,0.00016438,2]
[425635837,1781841039000,-500.0,0.00016438,2]
[425635835,1781841039000,-500.0,0.00016438,2]
[425635838,1781841039000,-521.44053227,0.00016438,2]
[425635842,1781841039000,-500.0,0.00016438,2]
[425635850,1781841039000,-500.0,0.00016438,2]
[425635851,1781841039000,-500.0,0.00016438,2]
[425635845,1781841039000,-513.80138669,0.00016438,2]
[425635853,1781841039000,-500.0,0.00016438,2]
[425635841,1781841039000,-500.0,0.00016438,2]
[425635846,1781841039000,-500.0,0.00016438,2]
[425635823,1781841039000,-520.74794325,0.00016438,2]
[425635839,1781841039000,-531.31425544,0.00016438,2]
[425635827,1781841039000,-500.0,0.00016438,2]
[425635799,1781841039000,-500.0,0.00016438,2]
[425635820,1781841039000,-500.0,0.00016438,2]
[425635844,1781841039000,-500.0,0.00016438,2]
[425635793,1781841039000,-500.0,0.00016438,2]
[425635803,1781841039000,-500.0,0.00016438,2]
[425635794,1781841039000,-500.0,0.00016438,2]
[425635796,1781841039000,-500.0,0.00016438,2]
[425635795,1781841039000,-500.0,0.00016438,2]
[425635797,1781841039000,-500.0,0.00016438,2]
[425635798,1781841039000,-515.42138441,0.00016438,2]
[425635800,1781841039000,-512.80513418,0.00016438,2]
[425635802,1781841039000,-501.97,0.00016438,2]
[425635801,1781841039000,-500.0,0.00016438,2]
[425635804,1781841039000,-520.95953793,0.00016438,2]
[425635807,1781841039000,-500.0,0.00016438,2]
[425635812,1781841039000,-500.0,0.00016438,2]
[425635806,1781841039000,-500.0,0.00016438,2]
[425635808,1781841039000,-500.0,0.00016438,2]
[425635805,1781841039000,-500.0,0.00016438,2]
[425635816,1781841039000,-515.64039393,0.00016438,2]
[425635814,1781841039000,-610.00469459,0.00016438,2]
[425635809,1781841039000,-500.0,0.00016438,2]
[425635811,1781841039000,-500.0,0.00016438,2]
[425635813,1781841039000,-500.0,0.00016438,2]
[425635810,1781841039000,-500.0,0.00016438,2]
[425635815,1781841039000,-500.0,0.00016438,2]
[425635818,1781841039000,-500.0,0.00016438,2]
[425635828,1781841039000,-500.0,0.00016438,2]
[425635825,1781841039000,-500.0,0.00016438,2]
[425635821,1781841039000,-500.0,0.00016438,2]
[425635843,1781841039000,-500.0,0.00016438,2]
[425635881,1781841039000,-500.0,0.00016438,2]
[425635848,1781841039000,-500.0,0.00016438,2]
[425635887,1781841039000,-500.0,0.00016438,2]
[425635882,1781841039000,-500.0,0.00016438,2]
[425635884,1781841039000,-567.68907114,0.00016438,2]
[425635889,1781841039000,-532.26,0.00016438,2]
[425635888,1781841039000,-500.0,0.00016438,2]